bitfinex/quotes_BTCUSD_20250602
["timestamp","ask_amount","ask_price","bid_price","bid_amount"]
[1748837152144,1.2741847,104900.0,104890.0,0.06277058]
[1748837152364,1.2741847,104900.0,104890.0,0.06276802]
[1748837152785,1.2741847,104900.0,104890.0,0.06276916]
[1748837153010,1.2741847,104900.0,104890.0,0.06276931]
[1748837153162,1.2741847,104900.0,104890.0,0.05386797]
[1748837153350,1.2741847,104900.0,104890.0,0.04496656]
[1748837153700,1.2741847,104900.0,104890.0,0.0627694]
[1748837153935,1.2741847,104900.0,104890.0,0.03606514]
[1748837154067,1.2741847,104900.0,104890.0,0.05386797]
[1748837154272,1.2741847,104900.0,104890.0,0.06276938]
[1748837154496,1.2741847,104900.0,104890.0,0.04496656]
[1748837154695,1.2741847,104900.0,104890.0,0.03606514]
[1748837154899,1.2741847,104900.0,104890.0,0.04496679]
[1748837155128,1.2741847,104900.0,104890.0,0.03606514]
[1748837156282,1.2741847,104900.0,104890.0,0.06277]
[1748837156544,0.95427149,104900.0,104890.0,0.03606514]
[1748837156747,1.2741847,104900.0,104890.0,0.04496661]
[1748837156944,1.2741847,104900.0,104890.0,0.03606514]
[1748837157155,1.2741847,104900.0,104890.0,0.06276971]
[1748837157485,1.2741847,104900.0,104890.0,0.06277035]
[1748837157762,1.2741847,104900.0,104890.0,0.04496713]
[1748837157960,1.2741847,104900.0,104890.0,0.06277111]
[1748837158166,1.2582847,104900.0,104890.0,0.06277111]
[1748837158383,1.2582847,104900.0,104890.0,0.05386912]
[1748837158597,1.2582847,104900.0,104890.0,0.03606514]
[1748837159144,1.2582847,104900.0,104890.0,0.0627728]
[1748837159342,1.2582847,104900.0,104890.0,0.04496775]
[1748837159609,1.2582847,104900.0,104890.0,0.06277312]
[1748837160157,1.2736847,104900.0,104890.0,0.0627732]
[1748837160361,1.2736847,104900.0,104890.0,0.0627734]
[1748837160557,1.2736847,104900.0,104890.0,0.06277373]
[1748837160766,1.2736847,104900.0,104890.0,0.06277374]
[1748837160985,1.79299081,104900.0,104890.0,0.06277374]
[1748837161194,1.79299081,104900.0,104890.0,0.04496877]
[1748837161625,1.70445221,104900.0,104890.0,0.03606514]
[1748837163588,1.77050219,104900.0,104890.0,0.03606514]
[1748837164369,1.70445221,104900.0,104890.0,0.03606514]
[1748837164715,1.7705043,104900.0,104890.0,0.03606514]
[1748837166071,1.77051506,104900.0,104890.0,0.03606514]
[1748837170410,1.77051414,104900.0,104890.0,0.03606514]
[1748837174706,1.47855414,104900.0,104890.0,0.03606514]
[1748837174939,1.77047414,104900.0,104890.0,0.03606514]
[1748837175360,1.11564772,104900.0,104890.0,0.03606514]
[1748837175593,1.75547414,104900.0,104890.0,0.03606514]
[1748837177691,1.68941221,104900.0,104890.0,0.03606514]
[1748837177897,1.7554587,104900.0,104890.0,0.03606514]
[1748837179106,1.77115733,104900.0,104890.0,0.03606514]
[1748837179920,1.86366855,104900.0,104890.0,0.03606514]
[1748837180529,1.77115733,104900.0,104890.0,0.03606514]
[1748837188093,1.75545733,104900.0,104890.0,0.03606514]
[1748837188304,1.77105733,104900.0,104890.0,0.03606514]
[1748837192393,1.77105152,104900.0,104890.0,0.03606514]
[1748837196670,1.70501221,104900.0,104890.0,0.03606514]
[1748837196873,1.77105628,104900.0,104890.0,0.03606514]
[1748837198510,1.82779827,104900.0,104890.0,0.03606514]
[1748837199022,1.19797185,104900.0,104890.0,0.03606514]
[1748837199227,1.83779827,104900.0,104890.0,0.03606514]
[1748837200493,1.78105628,104900.0,104890.0,0.03606514]
[1748837202269,1.14122986,104900.0,104890.0,0.03606514]
[1748837202478,1.78106281,104900.0,104890.0,0.03606514]
[1748837202690,2.12689221,104900.0,104890.0,0.03606514]
[1748837202895,2.19294393,104900.0,104890.0,0.03606514]
[1748837204683,2.15918918,104900.0,104890.0,0.03606514]
[1748837205274,2.19294653,104900.0,104890.0,0.03606514]
[1748837205479,2.15918918,104900.0,104890.0,0.03606514]
[1748837205810,2.1591934,104900.0,104890.0,0.03606514]
[1748837210121,2.15919239,104900.0,104890.0,0.03606514]
[1748837212520,2.15919239,104900.0,104890.0,0.03447914]
[1748837213691,1.50376597,104900.0,104890.0,0.03447914]
[1748837214015,1.77035126,104900.0,104890.0,0.03447914]
[1748837214231,1.77035126,104900.0,104890.0,0.06597914]
[1748837214435,1.75581041,104900.0,104890.0,0.06597914]
[1748837214641,1.84541041,104900.0,104890.0,0.06597914]
[1748837214852,2.15175126,104900.0,104890.0,0.06597914]
[1748837215063,2.13721041,104900.0,104890.0,0.06597914]
[1748837215267,2.15175126,104900.0,104890.0,0.06597914]
[1748837218781,2.08569221,104900.0,104890.0,0.06597914]
[1748837218989,2.15175294,104900.0,104890.0,0.06597914]
[1748837220810,2.15175294,104900.0,104890.0,0.04957914]
[1748837222172,2.15175294,104900.0,104890.0,0.03447914]
[1748837222391,2.16685294,104900.0,104890.0,0.03447914]
[1748837223209,2.16656694,104900.0,104890.0,0.03447914]
[1748837223885,2.15146694,104900.0,104890.0,0.03447914]
[1748837224315,1.51164052,104900.0,104890.0,0.03447914]
[1748837224597,2.15146694,104900.0,104890.0,0.03447914]
[1748837230111,2.16766694,104900.0,104890.0,0.03447914]
[1748837230612,2.16767863,104900.0,104890.0,0.03447914]
[1748837233364,2.16611863,104900.0,104890.0,0.03447914]
[1748837233601,2.14979863,104900.0,104890.0,0.05007914]
[1748837235518,2.14980293,104900.0,104890.0,0.05007914]
[1748837238529,2.14980293,104900.0,104890.0,0.03447914]
[1748837239094,1.12869651,104900.0,104890.0,0.03447914]
[1748837239316,0.70174464,104900.0,104890.0,0.57576829]
[1748837239527,0.99346464,104900.0,104890.0,0.38509235]
[1748837239741,1.33346464,104900.0,104890.0,0.38509235]
[1748837240161,0.54034464,104900.0,104890.0,0.57576829]
[1748837240364,0.92158464,104900.0,104890.0,0.39462614]
[1748837241002,0.92158464,104900.0,104890.0,0.40351115]
[1748837241222,0.92158464,104900.0,104890.0,0.69069008]
[1748837241442,0.92158464,104900.0,104890.0,0.69957508]
[1748837241648,0.92158464,104900.0,104890.0,0.70846009]
[1748837241861,0.92158464,104900.0,104890.0,0.69735383]
[1748837242062,0.92158464,104900.0,104890.0,0.69735418]
[1748837242272,0.92158464,104900.0,104890.0,0.69069008]
[1748837242677,0.92158464,104900.0,104890.0,0.48983283]
[1748837242930,0.92154464,104900.0,104890.0,0.48983283]
[1748837243138,0.92154464,104900.0,104890.0,0.48094665]
[1748837243348,0.92154464,104900.0,104890.0,0.48983268]
[1748837243747,0.92154464,104900.0,104890.0,0.48094665]
[1748837244375,0.92154464,104900.0,104890.0,0.5082562]
[1748837244583,0.92154464,104900.0,104890.0,0.50538832]
[1748837244803,0.92154464,104900.0,104890.0,0.48094665]
[1748837244985,0.92154464,104900.0,104890.0,0.48761254]
[1748837245225,0.92154464,104900.0,104890.0,0.48983454]
[1748837245433,0.92154464,104900.0,104890.0,0.50761]
[1748837245648,0.92154464,104900.0,104890.0,0.48094665]
[1748837245865,0.92154464,104900.0,104890.0,0.48761246]
[1748837246094,0.92154464,104900.0,104890.0,0.48094665]
[1748837246561,0.92154464,104900.0,104890.0,0.50538748]
[1748837246734,0.92154464,104900.0,104890.0,0.48094665]
[1748837246937,0.92154464,104900.0,104890.0,0.49427801]
[1748837247116,0.92154464,104900.0,104890.0,0.52094071]
[1748837247723,0.92154464,104900.0,104890.0,0.19213993]
[1748837248070,1.24145785,104900.0,104890.0,0.10517319]
[1748837248291,1.24145785,104900.0,104890.0,0.10517318]
[1748837248469,1.24145785,104900.0,104890.0,0.09628564]
[1748837248674,1.24145785,104900.0,104890.0,0.10517321]
[1748837248876,1.24145785,104900.0,104890.0,0.10517355]
[1748837249325,1.24145785,104900.0,104890.0,0.1051615]
[1748837249673,1.24145785,104900.0,104890.0,0.07184482]
[1748837249881,1.24145785,104900.0,104890.0,0.10512663]
[1748837250091,1.24145785,104900.0,104890.0,0.07850118]
[1748837250583,0.92154464,104900.0,104890.0,0.10512658]
[1748837250807,0.92154464,104900.0,104890.0,0.1051184]
[1748837251022,0.92154464,104900.0,104890.0,0.09845429]
[1748837251239,0.92154464,104900.0,104890.0,0.10510672]
[1748837251678,0.92154464,104900.0,104890.0,0.07184482]
[1748837251903,0.92142464,104900.0,104890.0,0.08957965]
[1748837252137,0.92142464,104900.0,104890.0,0.07184482]
[1748837252345,0.92142464,104900.0,104890.0,0.40949286]
[1748837252561,0.92142464,104900.0,104890.0,0.4094889]
[1748837253201,0.92142464,104900.0,104890.0,0.4094886]
[1748837253613,0.92142464,104900.0,104890.0,0.39175803]
[1748837253817,0.92142464,104900.0,104890.0,0.40948698]
[1748837254020,0.92142464,104900.0,104890.0,0.07184482]
[1748837254281,0.92142464,104900.0,104890.0,0.08957294]
[1748837254917,0.92142464,104900.0,104890.0,0.08957292]
[1748837256016,0.92142464,104900.0,104890.0,0.08957168]
[1748837256835,0.92142464,104900.0,104890.0,0.08957163]
[1748837257677,0.92142464,104900.0,104890.0,0.07184482]
[1748837257898,1.24133785,104900.0,104890.0,0.04114482]
[1748837258138,1.59099191,104900.0,104890.0,0.04114482]
[1748837258377,1.60749191,104900.0,104890.0,0.04114482]
[1748837258602,1.70334621,104900.0,104890.0,0.04114482]
[1748837259902,1.70334621,104900.0,104890.0,0.0233534]
[1748837261372,1.06351979,104900.0,104890.0,0.0233534]
[1748837261583,1.70334621,104900.0,104890.0,0.0233534]
[1748837264076,1.67164621,104900.0,104890.0,0.0233534]
[1748837264287,1.351733,104900.0,104890.0,0.0233534]
[1748837264741,1.03181979,104900.0,104890.0,0.0233534]
[1748837264939,1.68744621,104900.0,104890.0,0.0233534]
[1748837265357,1.367563,104900.0,104890.0,0.0233534]
[1748837267335,1.04761979,104900.0,104890.0,0.0233534]
[1748837267574,1.383863,104900.0,104890.0,0.0233534]
[1748837272028,1.06391979,104900.0,104890.0,0.0233534]
[1748837272226,1.383863,104900.0,104890.0,0.0233534]
[1748837285348,1.70388383,104900.0,104890.0,0.0233534]
[1748837289919,1.32280383,104900.0,104890.0,0.0233534]
[1748837290130,1.68754383,104900.0,104890.0,0.0233534]
[1748837293366,1.75352037,104900.0,104890.0,0.0233534]
[1748837294315,1.68754383,104900.0,104890.0,0.0233534]
[1748837294492,1.75353187,104900.0,104890.0,0.0233534]
[1748837297442,1.75237187,104900.0,104890.0,0.0233534]
[1748837297659,7.13745389,104900.0,104890.0,0.0233534]
[1748837297868,7.14236268,104900.0,104890.0,0.00100143]
[1748837298078,7.18539898,104900.0,104890.0,0.00100143]
[1748837298918,7.18739898,104900.0,104890.0,0.00100143]
[1748837299127,7.2799102,104900.0,104890.0,0.00100143]
[1748837300009,7.2829102,104900.0,104890.0,0.00200143]
[1748837303064,7.7655102,104900.0,104890.0,0.00200143]
[1748837303292,7.85934907,104900.0,104890.0,0.00200143]
[1748837303498,7.85934907,104900.0,104870.0,1.02]
[1748837303499,0.59700374,104880.0,104870.0,1.02]
[1748837303705,1.77985039,104880.0,104870.0,1.02]
[1748837304105,1.81345976,104880.0,104870.0,1.02]
[1748837304720,1.81345976,104880.0,104870.0,1.022]
[1748837305169,1.81345976,104880.0,104870.0,1.023]
[1748837306222,2.235953,104880.0,104870.0,1.023]
[1748837306434,1.82345976,104880.0,104870.0,1.023]
[1748837307022,1.82345976,104880.0,104870.0,1.021]
[1748837307490,2.14544178,104880.0,104870.0,1.021]
[1748837307973,2.14544178,104880.0,104870.0,1.02]
[1748837308182,2.14838832,104880.0,104870.0,1.021]
[1748837309387,1.8284063,104880.0,104870.0,1.021]
[1748837310016,1.8467028,104880.0,104870.0,1.021]
[1748837311946,2.16668482,104880.0,104870.0,1.021]
[1748837313209,1.20673876,104880.0,104870.0,1.021]
[1748837313540,2.14833491,104880.0,104870.0,1.021]
[1748837314277,1.18838885,104880.0,104870.0,1.021]
[1748837314476,2.14833491,104880.0,104870.0,1.021]
[1748837314977,7.19833491,104880.0,104870.0,1.021]
[1748837316945,7.19833491,104880.0,104870.0,0.98642]
[1748837317150,7.25424821,104880.0,104870.0,0.98642]
[1748837317680,7.25424821,104880.0,104870.0,0.93873311]
[1748837317897,7.25424821,104880.0,104870.0,0.9163747]
[1748837318337,7.19833491,104880.0,104870.0,0.9163747]
[1748837319197,7.61033491,104880.0,104870.0,0.9163747]
[1748837319429,7.60033491,104880.0,104870.0,0.9163747]
[1748837319637,7.60033491,104880.0,104870.0,0.84480367]
[1748837319843,7.60033491,104880.0,104870.0,0.83952367]
[1748837320064,7.65438365,104880.0,104870.0,0.83952367]
[1748837320272,7.65438365,104880.0,104870.0,0.81122367]
[1748837320488,7.65438365,104880.0,104870.0,0.76353678]
[1748837320705,7.65436133,104880.0,104870.0,0.70091989]
[1748837320906,7.65436133,104880.0,104870.0,0.653233]
[1748837321112,7.58850221,104880.0,104870.0,0.55785922]
[1748837321327,7.58850221,104880.0,104870.0,0.51017233]
[1748837321537,7.58850221,104880.0,104870.0,0.41479855]
[1748837321751,7.58850221,104880.0,104870.0,0.34451166]
[1748837321954,7.58850221,104880.0,104870.0,0.29682477]
[1748837322165,7.58850221,104880.0,104870.0,0.20144539]
[1748837322378,7.58850221,104880.0,104870.0,0.12002539]
[1748837322379,8.13110221,104880.0,104870.0,0.12002539]
[1748837322643,8.13110221,104880.0,104870.0,0.0723357]
[1748837322856,8.13110221,104880.0,104870.0,0.00864601]
[1748837323503,8.13110221,104880.0,104840.0,0.13214494]
[1748837323504,0.86980492,104850.0,104840.0,0.13214494]
[1748837323710,1.36380831,104850.0,104840.0,0.13214494]
[1748837324562,1.68379033,104850.0,104840.0,0.13214494]
[1748837324757,1.70368497,104850.0,104840.0,0.1382375]
[1748837325098,1.70368497,104850.0,104840.0,0.06199256]
[1748837325331,1.70368497,104850.0,104840.0,0.02889256]
[1748837326148,1.70368497,104850.0,104840.0,0.02589256]
[1748837326548,1.70368497,104850.0,104840.0,0.02789256]
[1748837326770,1.71315883,104850.0,104840.0,0.02789256]
[1748837327150,1.76059968,104850.0,104840.0,0.02789256]
[1748837327356,1.8621109,104850.0,104840.0,0.02489256]
[1748837327759,1.8621109,104850.0,104840.0,0.02589256]
[1748837327930,1.8458109,104850.0,104840.0,0.02589256]
[1748837328139,1.75329968,104850.0,104840.0,0.02589256]
[1748837329541,1.76939968,104850.0,104840.0,0.02589256]
[1748837330036,7.31199968,104850.0,104840.0,0.02589256]
[1748837330437,7.31199968,104850.0,104840.0,0.02289256]
[1748837330905,7.31499968,104850.0,104840.0,0.02389256]
[1748837331144,7.71949292,104850.0,104840.0,0.02389256]
[1748837331351,7.71949292,104850.0,104840.0,0.001]
[1748837331578,7.30699968,104850.0,104840.0,0.001]
[1748837333080,7.6556297,104850.0,104840.0,0.001]
[1748837333295,7.33652762,104850.0,104840.0,0.001]
[1748837333510,7.40229653,104850.0,104840.0,0.001]
[1748837333922,0.87028493,104830.0,104820.0,0.0352]
[1748837334157,0.87028493,104830.0,104820.0,0.03524869]
[1748837334158,1.75929923,104830.0,104820.0,0.03524869]
[1748837334792,1.75929923,104830.0,104820.0,0.05044869]
[1748837335435,1.75929923,104830.0,104820.0,0.05144869]
[1748837336072,1.75933923,104830.0,104820.0,0.05144869]
[1748837336280,1.75933923,104830.0,104820.0,0.05344869]
[1748837338947,1.75933923,104830.0,104820.0,0.03824869]
[1748837339677,1.43891724,104830.0,104820.0,0.03824869]
[1748837339899,1.75933923,104830.0,104820.0,0.03824869]
[1748837340844,1.75933923,104830.0,104820.0,0.02304869]
[1748837341062,2.09430207,104830.0,104820.0,0.02304869]
[1748837341276,2.21241329,104830.0,104820.0,0.02304869]
[1748837341747,7.26881329,104830.0,104820.0,0.00068178]
[1748837342036,7.363232,104830.0,104820.0,0.00068178]
[1748837342252,7.27072078,104830.0,104820.0,0.00068178]
[1748837342676,5.61488411,104820.0,104810.0,0.05]
[1748837342885,6.35158239,104820.0,104810.0,0.05004849]
[1748837344341,6.35358239,104820.0,104810.0,0.05104849]
[1748837344549,6.36968239,104820.0,104810.0,0.05104849]
[1748837345364,6.39933439,104820.0,104810.0,0.05104849]
[1748837346441,6.41453439,104820.0,104810.0,0.05104849]
[1748837348071,6.50704561,104820.0,104810.0,0.05104849]
[1748837348885,6.41453439,104820.0,104810.0,0.05104849]
[1748837349735,6.39933439,104820.0,104810.0,0.05104849]
[1748837350355,6.41543439,104820.0,104810.0,0.05104849]
[1748837352161,6.39933439,104820.0,104810.0,0.05104849]
[1748837353650,6.38323439,104820.0,104810.0,0.05104849]
[1748837355084,1.33323439,104820.0,104810.0,0.05104849]
[1748837355280,1.71439439,104820.0,104810.0,0.08344849]
[1748837355479,1.71439439,104820.0,104810.0,0.06704849]
[1748837356441,1.7193727,104820.0,104810.0,0.06704849]
[1748837357800,1.7193727,104820.0,104810.0,0.05104849]
[1748837360838,1.3382127,104820.0,104810.0,0.05104849]
[1748837361039,0.92948157,104820.0,104810.0,0.08194849]
[1748837361410,0.00797831,104820.0,104810.0,0.59319196]
[1748837361612,0.00797831,104820.0,104810.0,0.31858435]
[1748837361613,0.31186294,104820.0,104810.0,0.31858435]
[1748837361814,0.30232333,104820.0,104810.0,0.39196656]
[1748837362220,0.30232333,104820.0,104810.0,0.09976743]
[1748837362460,0.30232333,104820.0,104810.0,0.11535664]
[1748837362461,0.62274532,104820.0,104810.0,0.11535664]
[1748837362667,0.62274532,104820.0,104810.0,0.10867501]
[1748837362870,0.62274532,104820.0,104810.0,0.09085733]
[1748837363078,0.62274532,104820.0,104810.0,0.10867556]
[1748837363315,0.62274532,104820.0,104810.0,0.10711556]
[1748837363531,0.62274532,104820.0,104810.0,0.08929733]
[1748837363733,0.62274532,104820.0,104810.0,0.08038849]
[1748837363854,0.62274532,104820.0,104810.0,0.0892958]
[1748837364056,0.30232333,104820.0,104810.0,0.08929613]
[1748837364273,1.68528246,104820.0,104810.0,0.08038849]
[1748837364484,1.68528246,104820.0,104810.0,0.06518849]
[1748837364885,1.68528246,104820.0,104810.0,0.04948849]
[1748837372631,1.70028246,104820.0,104810.0,0.04967931]
[1748837373051,1.05943848,104820.0,104810.0,0.04967931]
[1748837373260,1.68528246,104820.0,104810.0,0.04967931]
[1748837373692,1.06003848,104820.0,104810.0,0.04967931]
[1748837373926,1.70088246,104820.0,104810.0,0.04967931]
[1748837374301,1.76684159,104820.0,104810.0,0.04967931]
[1748837375086,1.70088246,104820.0,104810.0,0.04967931]
[1748837375260,1.76687097,104820.0,104810.0,0.04967931]
[1748837378249,2.17911097,104820.0,104810.0,0.04967931]
[1748837379944,2.17914967,104820.0,104810.0,0.04967931]
[1748837381303,2.16354967,104820.0,104810.0,0.04967931]
[1748837382057,2.17914967,104820.0,104810.0,0.04967931]
[1748837382247,2.19434967,104820.0,104810.0,0.04967931]
[1748837382672,2.29686089,104820.0,104810.0,0.04967931]
[1748837382907,1.80798967,104820.0,104810.0,0.04967931]
[1748837383118,2.21773346,104820.0,104810.0,0.04967931]
[1748837383452,2.16348146,104820.0,104810.0,0.04967931]
[1748837383701,2.1634856,104820.0,104810.0,0.04967931]
[1748837385002,2.1921366,104820.0,104810.0,0.04967931]
[1748837388993,2.19214887,104820.0,104810.0,0.04967931]
[1748837389396,2.20794887,104820.0,104810.0,0.04967931]
[1748837389797,2.20794887,104820.0,104810.0,0.04948849]
[1748837390012,2.30046009,104820.0,104810.0,0.04948849]
[1748837392037,2.20794887,104820.0,104810.0,0.04948849]
[1748837393720,2.2079505,104820.0,104810.0,0.04948849]
[1748837396257,2.2343505,104820.0,104810.0,0.04948849]
[1748837396461,7.25059303,104820.0,104810.0,0.02711837]
[1748837396887,7.33965391,104820.0,104810.0,0.02711837]
[1748837397242,7.29365666,104820.0,104810.0,0.02711837]
[1748837398004,7.30565666,104820.0,104810.0,0.02711837]
[1748837398334,7.30465666,104820.0,104810.0,0.02711837]
[1748837398782,7.27159303,104820.0,104810.0,0.02811837]
[1748837400287,7.31465093,104820.0,104810.0,0.02811837]
[1748837400437,7.31465031,104820.0,104810.0,0.02811837]
[1748837400633,1.06340322,104810.0,104800.0,0.03]
[1748837400884,6.57847908,104810.0,104800.0,0.03]
[1748837401053,7.00269636,104810.0,104800.0,0.01607]
[1748837401256,0.80599696,104810.0,104800.0,0.01607]
[1748837401463,1.02767241,104810.0,104800.0,0.04777]
[1748837401671,1.40883241,104810.0,104800.0,0.04777]
[1748837401873,1.45202526,104810.0,104800.0,0.04777]
[1748837402249,1.45502526,104810.0,104800.0,0.04777]
[1748837402456,1.07386526,104810.0,104800.0,0.04777]
[1748837402662,1.45502526,104810.0,104800.0,0.04777]
[1748837403018,1.45821254,104810.0,104800.0,0.04777]
[1748837403228,1.07705254,104810.0,104800.0,0.04777]
[1748837403446,1.45821254,104810.0,104800.0,0.04777]
[1748837404023,1.07705254,104810.0,104800.0,0.04777]
[1748837404360,0.63917951,104810.0,104800.0,0.04777]
[1748837404554,1.02033951,104810.0,104800.0,0.04777]
[1748837405318,1.36033951,104810.0,104800.0,0.04777]
[1748837405521,1.03991752,104810.0,104800.0,0.04777]
[1748837405721,1.36033951,104810.0,104800.0,0.04777]
[1748837406011,1.36029951,104810.0,104800.0,0.04777]
[1748837406432,0.97917951,104810.0,104800.0,0.04777]
[1748837406621,1.06857951,104810.0,104800.0,0.04777]
[1748837406829,1.36029951,104810.0,104800.0,0.04777]
[1748837407367,0.97917951,104810.0,104800.0,0.04777]
[1748837407515,1.06857951,104810.0,104800.0,0.04777]
[1748837407721,1.36029951,104810.0,104800.0,0.04777]
[1748837408174,1.36025951,104810.0,104800.0,0.04777]
[1748837409223,1.06857951,104810.0,104800.0,0.04777]
[1748837409432,0.65875752,104810.0,104800.0,0.04777]
[1748837409572,1.36025951,104810.0,104800.0,0.04777]
[1748837410573,0.97917951,104810.0,104800.0,0.04777]
[1748837410771,0.63776237,104810.0,104800.0,0.04777]
[1748837411002,0.92944237,104810.0,104800.0,0.04777]
[1748837411450,0.54836237,104810.0,104800.0,0.04777]
[1748837411651,0.92944237,104810.0,104800.0,0.07453352]
[1748837411802,0.92944237,104810.0,104800.0,0.07453335]
[1748837412009,0.92944237,104810.0,104800.0,0.08122409]
[1748837412215,0.92944237,104810.0,104800.0,0.07453229]
[1748837412450,0.92944237,104810.0,104800.0,0.08122278]
[1748837412641,0.92944237,104810.0,104800.0,0.05446015]
[1748837412800,0.92944237,104810.0,104800.0,0.0544603]
[1748837413002,0.92944237,104810.0,104800.0,0.05446054]
[1748837413350,0.63776237,104810.0,104800.0,0.04777]
[1748837413478,0.92944237,104810.0,104800.0,0.04777]
[1748837413681,0.54836237,104810.0,104800.0,0.07453168]
[1748837413922,0.92944237,104810.0,104800.0,0.05446026]
[1748837414128,0.92944237,104810.0,104800.0,0.04777]
[1748837414535,0.92944237,104810.0,104800.0,0.07230124]
[1748837414732,0.92944237,104810.0,104800.0,0.04777]
[1748837414933,0.92944237,104810.0,104800.0,0.05669034]
[1748837415155,0.92944237,104810.0,104800.0,0.05446025]
[1748837415428,0.92944237,104810.0,104800.0,0.04777]
[1748837415610,0.92944237,104810.0,104800.0,0.0723009]
[1748837415818,0.92944237,104810.0,104800.0,0.04777]
[1748837416655,1.24986436,104810.0,104800.0,0.04777]
[1748837417298,1.24986436,104810.0,104800.0,0.06560962]
[1748837417434,1.24986436,104810.0,104800.0,0.07452944]
[1748837417865,1.24986436,104810.0,104800.0,0.04777]
[1748837420051,0.92944237,104810.0,104800.0,0.04777]
[1748837424569,0.92940237,104810.0,104800.0,0.04777]
[1748837429270,0.92940237,104810.0,104800.0,0.04661]
[1748837430283,0.63776237,104810.0,104800.0,0.04661]
[1748837430487,0.92940237,104810.0,104800.0,0.04661]
[1748837431506,0.92940237,104810.0,104800.0,0.09792077]
[1748837432254,0.92940237,104810.0,104800.0,0.08007341]
[1748837432409,0.92940237,104810.0,104800.0,0.09792046]
[1748837432576,0.92940237,104810.0,104800.0,0.08230436]
[1748837432775,0.92940237,104810.0,104800.0,0.07338077]
[1748837432981,0.92940237,104810.0,104800.0,0.09792995]
[1748837434026,0.92940237,104810.0,104800.0,0.09794907]
[1748837434222,0.92940237,104810.0,104800.0,0.09794908]
[1748837434441,0.92940237,104810.0,104800.0,0.08008674]
[1748837434599,0.92940237,104810.0,104800.0,0.09794909]
[1748837434800,0.92940237,104810.0,104800.0,0.08901791]
[1748837435028,0.92940237,104810.0,104800.0,0.0979491]
[1748837435226,0.92940237,104810.0,104800.0,0.09796191]
[1748837435622,0.92940237,104810.0,104800.0,0.09796206]
[1748837435825,0.92940237,104810.0,104800.0,0.09796462]
[1748837435991,0.92940237,104810.0,104800.0,0.09796533]
[1748837436191,0.92940237,104810.0,104800.0,0.08232825]
[1748837436396,0.92940237,104810.0,104800.0,0.07339298]
[1748837436634,0.92940237,104810.0,104800.0,0.09796644]
[1748837436853,0.92940237,104810.0,104800.0,0.09796647]
[1748837437063,0.92940237,104810.0,104800.0,0.07115903]
[1748837437283,0.92940237,104810.0,104800.0,0.09796658]
[1748837437706,0.92940237,104810.0,104800.0,0.09796749]
[1748837437946,0.92940237,104810.0,104800.0,0.09796775]
[1748837438222,0.92940237,104810.0,104800.0,0.08009549]
[1748837438440,0.92940237,104810.0,104800.0,0.09796785]
[1748837439322,0.92940237,104810.0,104800.0,0.09797502]
[1748837439538,0.92940237,104810.0,104800.0,0.09798129]
[1748837439776,0.92940237,104810.0,104800.0,0.09798134]
[1748837440232,0.92940237,104810.0,104800.0,0.08904178]
[1748837440481,0.92940237,104810.0,104800.0,0.09798236]
[1748837441662,0.92940237,104810.0,104800.0,0.0979917]
[1748837441869,0.92940237,104810.0,104800.0,0.06445718]
[1748837442259,0.92940237,104810.0,104800.0,0.09799205]
[1748837443313,0.92940237,104810.0,104800.0,0.09799232]
[1748837444119,0.92940237,104810.0,104800.0,0.09799257]
[1748837444764,0.92940237,104810.0,104800.0,0.06445718]
[1748837444971,0.92940237,104810.0,104800.0,0.09799257]
[1748837445415,0.92940237,104810.0,104800.0,0.09799279]
[1748837445864,0.92940237,104810.0,104800.0,0.06445718]
[1748837446044,0.92940237,104810.0,104800.0,0.09799279]
[1748837446367,0.92940237,104810.0,104800.0,0.0979929]
[1748837446568,0.92940237,104810.0,104800.0,0.09128578]
[1748837446786,0.92940237,104810.0,104800.0,0.09799299]
[1748837447520,0.92940237,104810.0,104800.0,0.07340006]
[1748837447736,0.92940237,104810.0,104800.0,0.09799299]
[1748837448846,0.92940237,104810.0,104800.0,0.09799302]
[1748837449078,0.92940237,104810.0,104800.0,0.08905018]
[1748837449294,0.92940237,104810.0,104800.0,0.08234299]
[1748837449531,0.92940237,104810.0,104800.0,0.07340008]
[1748837449751,0.92940237,104810.0,104800.0,0.08234292]
[1748837449957,0.92940237,104810.0,104800.0,0.1002286]
[1748837450164,0.92940237,104810.0,104800.0,0.07340008]
[1748837450369,0.92940237,104810.0,104800.0,0.09128573]
[1748837450576,0.92940237,104810.0,104800.0,0.0823429]
[1748837450840,0.92940237,104810.0,104800.0,0.07340008]
[1748837451294,0.92940237,104810.0,104800.0,0.08234297]
[1748837451506,0.92940237,104810.0,104800.0,0.07340008]
[1748837452196,0.92940237,104810.0,104800.0,0.10693593]
[1748837452406,0.92940237,104810.0,104800.0,0.08010723]
[1748837452583,0.92940237,104810.0,104800.0,0.10693582]
[1748837452857,0.92932237,104810.0,104800.0,0.08234292]
[1748837453058,0.92932237,104810.0,104800.0,0.10693572]
[1748837453260,0.92932237,104810.0,104800.0,0.08905003]
[1748837453441,0.20836237,104810.0,104800.0,0.07340008]
[1748837453680,0.23698522,104810.0,104800.0,0.28570885]
[1748837453884,0.22744442,104810.0,104800.0,0.30791442]
[1748837454014,0.22744442,104810.0,104800.0,0.28332355]
[1748837454219,0.22244442,104810.0,104800.0,0.71524836]
[1748837454411,0.22244442,104810.0,104800.0,0.69959984]
[1748837454606,0.22544442,104810.0,104800.0,0.38811986]
[1748837454852,0.22544442,104810.0,104800.0,0.41271037]
[1748837455053,0.22544442,104810.0,104800.0,0.38588436]
[1748837455386,0.22244442,104810.0,104800.0,0.41270753]
[1748837455523,0.22444442,104810.0,104800.0,0.41269589]
[1748837456332,0.22444442,104810.0,104800.0,0.40599228]
[1748837456527,0.21490353,104810.0,104800.0,0.40315399]
[1748837456731,0.20536255,104810.0,104800.0,0.21231391]
[1748837456936,0.20536255,104810.0,104800.0,0.21231259]
[1748837457146,0.20536255,104810.0,104800.0,0.19443452]
[1748837457346,0.20536255,104810.0,104800.0,0.19666855]
[1748837457547,0.20536255,104810.0,104800.0,0.20560464]
[1748837457750,0.20536255,104810.0,104800.0,0.17819049]
[1748837457976,0.20536255,104810.0,104800.0,0.2027648]
[1748837458339,0.20536255,104810.0,104800.0,0.20276498]
[1748837458821,0.20536255,104810.0,104800.0,0.20276335]
[1748837459028,0.20536255,104810.0,104800.0,0.19666705]
[1748837459238,0.20536255,104810.0,104800.0,0.1877317]
[1748837459496,0.20536255,104810.0,104800.0,0.18549775]
[1748837459707,0.20536255,104810.0,104800.0,0.17879636]
[1748837460115,0.20536255,104810.0,104800.0,0.19443294]
[1748837460317,0.20536255,104810.0,104800.0,0.17879636]
[1748837460524,0.20536255,104810.0,104800.0,0.16925438]
[1748837461166,0.20536255,104810.0,104800.0,0.18712476]
[1748837461372,0.20536255,104810.0,104800.0,0.20276105]
[1748837461655,0.20536255,104810.0,104800.0,0.18712402]
[1748837461853,0.20536255,104810.0,104800.0,0.17818918]
[1748837462001,0.20536255,104810.0,104800.0,0.16925438]
[1748837462218,0.20536255,104810.0,104800.0,0.19666598]
[1748837462403,0.20536255,104810.0,104800.0,0.18773118]